[Event "FIDE WYCC Top Boards Girls 2023"]
[Site "Montesilvano"]
[Date "2023.11.16"]
[Round "4.9"]
[White "Khuslen, Erdenebayar"]
[Black "Shvedova, Alexandra"]
[Result "0-1"]
[ECO "E20"]
[WhiteElo "1906"]
[BlackElo "2170"]
[Annotator "RC"]
[PlyCount "94"]
[EventDate "2023.11.13"]
[EventType "swiss"]
[EventCountry "ITA"]
[SourceTitle "playchess.com"]
[Source "ChessBase"]
[SourceQuality "1"]
[TimeControl "40/5400+30:1800+30"]

1. d4 {[%emt 0:00:02]} Nf6 {[%emt 0:00:05]} 2. c4 {[%emt 0:00:36]} e6 {[%emt 0:00:04]} 3. Nc3 {[%emt 0:00:21]} Bb4 {[%emt 0:00:20]} 4. f3 {[%emt 0:01:28]} c5 {[%emt 0:01:17]} 5. d5 {[%emt 0:00:59]} b5 {[%emt 0:00:20]} 6. e4 {[%emt 0:00:23]} O-O {[%emt 0:00:45]} 7. Nge2 {[%emt 0:03:06]} bxc4 {[%emt 0:08:36]} 8. Nf4 {[%emt 0:03:00]} Ba6 {[%emt 0:28:47]} 9. Be2 {[%emt 0:12:30]} exd5 {[%emt 0:02:51]} 10. Nfxd5 {[%emt 0:03:03]} Nxd5 {[%emt 0:02:59]} 11. Qxd5 {[%emt 0:00:17]} Nc6 {[%emt 0:03:59]} 12. O-O {[%emt 0:05:45]} Qf6 {[%emt 0:05:36]} 13. Nd1 {[%emt 0:15:48]} Qd4+ {[%emt 0:13:05]} 14. Ne3 {[%emt 0:03:58]} Qxd5 {[%emt 0:02:57]} 15. exd5 {[%emt 0:04:12]} Ne5 {[%emt 0:00:33]} 16. Rd1 {[%emt 0:01:49]} Rfe8 {[%emt 0:05:06]} 17. Bf1 {[%emt 0:06:37]} Rab8 {[%emt 0:03:49]} 18. Nf5 {[%emt 0:04:07]} Nd3 {[%emt 0:02:32]} 19. d6 {[%emt 0:06:53]} Re6 {[%emt 0:02:20]} 20. g3 {[%emt 0:03:06]} Ba5 {[%emt 0:03:26]} 21. Rb1 {[%emt 0:01:55]} Bd8 {[%emt 0:03:36]} 22. b3 {[%emt 0:02:35]} Re5 {[%emt 0:04:50]} 23. g4 {[%emt 0:03:21]} Nxc1 {[%emt 0:02:09]} 24. Rdxc1 {[%emt 0:01:22]} g6 {[%emt 0:01:17]} 25. Ng3 {[%emt 0:00:26]} Bg5 {[%emt 0:00:26]} 26. Re1 {[%emt 0:04:53]} Be3+ {[%emt 0:00:57]} 27. Kg2 {[%emt 0:00:17]} Bd4 {[%emt 0:00:35]} 28. Ne4 {[%emt 0:00:56]} Re6 {[%emt 0:00:30]} 29. bxc4 {[%emt 0:01:24]} Rf8 {[%emt 0:00:17]} 30. g5 {[%emt 0:00:29]} Kg7 {[%emt 0:00:50]} 31. Kg3 {[%emt 0:01:10]} Rd8 {[%emt 0:00:24]} 32. Bh3 {[%emt 0:03:05]} Ree8 {[%emt 0:00:21]} 33. Rec1 {[%emt 0:00:37]} h6 {[%emt 0:00:10]} 34. Nf6 {[%emt 0:02:46]} Re2 {[%emt 0:00:56]} 35. Nxd7 {[%emt 0:02:38]} Bf2+ {[%emt 0:00:24]} 36. Kg2 {[%emt 0:00:04]} Be3+ {[%emt 0:00:12]} 37. Kf1 {[%emt 0:00:07]} Rf2+ {[%emt 0:00:12]} 38. Ke1 {[%emt 0:00:06]} Rxh2 {[%emt 0:00:27]} 39. gxh6+ {[%emt 0:02:06]} Bxh6 {[%emt 0:00:20]} 40. Rd1 {[%emt 0:00:00]} Rxh3 {[%emt 0:00:00]} 41. Nxc5 {[%emt 0:03:15]} Bxc4 {[%emt 0:02:55]} 42. Kf2 {[%emt 0:05:03]} Bf4 {[%emt 0:07:08]} 43. Rd4 {[%emt 0:01:11]} Rh2+ {[%emt 0:01:33]} 44. Kg1 {[%emt 0:00:35]} Be3+ {[%emt 0:00:26]} 45. Kxh2 {[%emt 0:00:06]} Bxd4 {[%emt 0:00:04]} 46. Nb7 {[%emt 0:00:12]} Rd7 {[%emt 0:00:16]} 47. Na5 {[%emt 0:02:27]} Bxa2 {[%emt 0:00:17]} 0-1

[Event "FIDE WYCC Top Boards Girls 2023"]
[Site "Montesilvano"]
[Date "2023.11.16"]
[Round "4.10"]
[White "Shohradova, Leyla"]
[Black "Trunz, Michelle"]
[Result "1-0"]
[ECO "D11"]
[WhiteElo "1782"]
[BlackElo "1997"]
[Annotator "NA RC"]
[PlyCount "85"]
[EventDate "2023.11.13"]
[EventType "swiss"]
[EventCountry "ITA"]
[SourceTitle "playchess.com"]
[Source "ChessBase"]
[SourceQuality "1"]
[TimeControl "40/5400+30:1800+30"]

1. d4 {[%emt 0:00:10]} d5 {[%emt 0:00:06]} 2. c4 {[%emt 0:00:13]} c6 {[%emt 0:00:05]} 3. g3 {[%emt 0:00:13]} Nf6 {[%emt 0:01:11]} 4. Nf3 {[%emt 0:00:28]} Bg4 {[%emt 0:01:43]} 5. Bg2 {[%emt 0:01:12]} e6 {[%emt 0:00:38]} 6. O-O {[%emt 0:00:49]} Bd6 {[%emt 0:04:51]} 7. Qb3 {[%emt 0:06:56]} Qb6 {[%emt 0:01:28]} 8. Qe3 {[%emt 0:06:01]} Bxf3 {[%emt 0:08:40]} 9. c5 {[%emt 0:02:22]} Qd8 {[%emt 0:00:45]} 10. Qxf3 {[%emt 0:02:21]} Bc7 {[%emt 0:00:46]} 11. Bf4 {[%emt 0:03:28]} O-O {[%emt 0:01:40]} 12. Nc3 {[%emt 0:02:44]} Nbd7 {[%emt 0:02:14]} 13. Bxc7 {[%emt 0:01:45]} Qxc7 {[%emt 0:00:02]} 14. b4 {[%emt 0:00:42]} b6 {[%emt 0:04:10]} 15. g4 {[%emt 0:10:21]} a5 {[%emt 0:12:25]} 16. a3 {[%emt 0:05:38]} e5 {[%emt 0:09:47]} 17. g5 {[%emt 0:15:48]} Ne8 {[%emt 0:03:25]} 18. e3 {[%emt 0:06:57]} g6 {[%emt 0:02:30]} 19. Bh3 {[%emt 0:02:33]} Ng7 {[%emt 0:04:25]} 20. Bxd7 {[%emt 0:05:28]} Qxd7 {[%emt 0:00:26]} 21. Na4 {[%emt 0:00:22]} Qd8 {[%emt 0:05:51]} 22. Nxb6 {[%emt 0:00:41]} Qxg5+ {[%emt 0:02:26]} 23. Qg3 {[%emt 0:01:50]} Qh5 {[%emt 0:13:19]} 24. Nd7 {[%emt 0:06:21]} f6 {[%emt 0:00:34]} 25. Nxf8 {[%emt 0:00:53]} Nf5 {[%emt 0:00:55]} 26. Nxh7 {[%emt 0:02:35]} Kxh7 {[%emt 0:01:36]} 27. Qg2 {[%emt 0:00:08]} Nh4 {[%emt 0:05:57]} 28. Qh3 {[%emt 0:01:14]} g5 {[%emt 0:01:36]} 29. f3 {[%emt 0:02:51]} Rg8 {[%emt 0:03:16]} 30. Qg4 {[%emt 0:02:18]} Qh6 {[%emt 0:01:15]} 31. e4 {[%emt 0:01:25]} Kg6 {[%emt 0:02:40]} 32. dxe5 {[%emt 0:02:48]} f5 {[%emt 0:00:22]} 33. exf5+ {[%emt 0:00:24]} Nxf5 {[%emt 0:00:06]} 34. Rf2 {[%emt 0:00:28]} Ne3 {[%emt 0:04:28]} 35. Qe6+ {[%emt 0:01:10]} Kh7 {[%emt 0:00:06]} 36. Qxh6+ {[%emt 0:00:25]} Kxh6 {[%emt 0:00:04]} 37. Re1 {[%emt 0:01:06]} d4 {[%emt 0:00:20]} 38. Rd2 {[%emt 0:01:26]} axb4 {[%emt 0:02:11]} 39. axb4 {[%emt 0:01:50]} g4 {[%emt 0:00:36]} 40. Rxd4 {[%emt 0:00:00]} gxf3+ {[%emt 0:00:00]} 41. Kf2 {[%emt 0:02:13]} Ng4+ {[%emt 0:02:09]} 42. Rxg4 {[%emt 0:03:10]} Rxg4 {[%emt 0:00:13]} 43. e6 {[%emt 0:00:06]} 1-0

[Event "FIDE WYCC Top Boards Girls 2023"]
[Site "Montesilvano"]
[Date "2023.11.16"]
[Round "4.11"]
[White "Tsetskhladze, Mariam"]
[Black "Nurgaliyeva, Zarina"]
[Result "0-1"]
[ECO "C45"]
[WhiteElo "1911"]
[BlackElo "2104"]
[Annotator "RC"]
[PlyCount "96"]
[EventDate "2023.11.13"]
[EventType "swiss"]
[EventCountry "ITA"]
[SourceTitle "playchess.com"]
[Source "ChessBase"]
[SourceQuality "1"]
[TimeControl "40/5400+30:1800+30"]

1. e4 {[%emt 0:00:13]} e5 {[%emt 0:00:21]} 2. Nf3 {[%emt 0:00:09]} Nc6 {[%emt 0:00:20]} 3. d4 {[%emt 0:00:39]} exd4 {[%emt 0:00:29]} 4. Nxd4 {[%emt 0:00:27]} Qf6 {[%emt 0:00:23]} 5. Nf3 {[%emt 0:00:44]} Bb4+ {[%emt 0:02:16]} 6. c3 {[%emt 0:01:21]} Bc5 {[%emt 0:00:54]} 7. Be2 {[%emt 0:01:40]} Nge7 {[%emt 0:01:49]} 8. Bg5 {[%emt 0:03:28]} Qg6 {[%emt 0:03:48]} 9. b4 {[%emt 0:14:40]} Bd6 {[%emt 0:05:08]} 10. O-O {[%emt 0:07:57]} f6 {[%emt 0:11:12]} 11. Bh4 {[%emt 0:08:20]} O-O {[%emt 0:03:30]} 12. Na3 {[%emt 0:11:48]} Bf4 {[%emt 0:17:05]} 13. Bg3 {[%emt 0:12:57]} Bxg3 {[%emt 0:04:38]} 14. hxg3 {[%emt 0:04:51]} a6 {[%emt 0:03:32]} 15. b5 {[%emt 0:04:07]} Ne5 {[%emt 0:06:50]} 16. Nxe5 {[%emt 0:04:00]} fxe5 {[%emt 0:00:06]} 17. Qd3 {[%emt 0:04:14]} Kh8 {[%emt 0:15:41]} 18. Nc4 {[%emt 0:03:21]} Qe6 {[%emt 0:02:24]} 19. b6 {[%emt 0:01:17]} d5 {[%emt 0:03:40]} 20. exd5 {[%emt 0:00:05]} Nxd5 {[%emt 0:00:08]} 21. bxc7 {[%emt 0:00:51]} e4 {[%emt 0:04:34]} 22. Qd4 {[%emt 0:00:54]} b5 {[%emt 0:01:10]} 23. Nd2 {[%emt 0:05:14]} Nf6 {[%emt 0:01:47]} 24. c4 {[%emt 0:02:28]} b4 {[%emt 0:00:55]} 25. c5 {[%emt 0:01:37]} Bd7 {[%emt 0:02:55]} 26. Rfe1 {[%emt 0:03:45]} Qf5 {[%emt 0:02:29]} 27. Nc4 {[%emt 0:00:41]} Be6 {[%emt 0:02:57]} 28. Nd6 {[%emt 0:00:52]} Qg6 {[%emt 0:00:47]} 29. Bc4 {[%emt 0:01:16]} Bxc4 {[%emt 0:02:14]} 30. Qxc4 {[%emt 0:00:06]} Qh5 {[%emt 0:00:18]} 31. Nxe4 {[%emt 0:01:23]} Ng4 {[%emt 0:00:21]} 32. Rad1 {[%emt 0:00:34]} Qh2+ {[%emt 0:01:13]} 33. Kf1 {[%emt 0:00:00]} Qh1+ {[%emt 0:00:09]} 34. Ke2 {[%emt 0:00:01]} Qxg2 {[%emt 0:00:05]} 35. Kd2 {[%emt 0:01:26]} Ne5 {[%emt 0:01:11]} 36. Qxb4 {[%emt 0:00:28]} Nf3+ {[%emt 0:00:30]} 37. Kc1 {[%emt 0:00:02]} Nxe1 {[%emt 0:00:06]} 38. Rxe1 {[%emt 0:00:13]} Rac8 {[%emt 0:00:47]} 39. c6 {[%emt 0:00:53]} Rfe8 {[%emt 0:00:42]} 40. Qd6 {[%emt 0:00:00]} Qf3 {[%emt 0:00:00]} 41. Re3 {[%emt 0:08:50]} Qf7 {[%emt 0:15:46]} 42. Ng5 {[%emt 0:14:08]} Qc4+ {[%emt 0:00:16]} 43. Kd1 {[%emt 0:00:36]} Qf1+ {[%emt 0:00:33]} 44. Kc2 {[%emt 0:02:18]} Qxf2+ {[%emt 0:00:13]} 45. Kb1 {[%emt 0:01:29]} Qxe3 {[%emt 0:00:31]} 46. Nf7+ {[%emt 0:00:54]} Kg8 {[%emt 0:00:04]} 47. Nd8 {[%emt 0:00:49]} Qb6+ {[%emt 0:00:39]} 48. Kc2 {[%emt 0:01:16]} Rcxd8 {[%emt 0:00:51]} 0-1

[Event "FIDE WYCC Top Boards Girls 2023"]
[Site "Montesilvano"]
[Date "2023.11.16"]
[Round "4.12"]
[White "Mou, Iris"]
[Black "Stankovic, Andrea"]
[Result "1-0"]
[ECO "C01"]
[WhiteElo "2086"]
[BlackElo "1768"]
[Annotator "NA RC"]
[PlyCount "71"]
[EventDate "2023.11.13"]
[EventType "swiss"]
[EventCountry "ITA"]
[SourceTitle "playchess.com"]
[Source "ChessBase"]
[SourceQuality "1"]
[TimeControl "40/5400+30:1800+30"]

1. e4 {[%emt 0:00:02]} e6 {[%emt 0:00:05]} 2. d4 {[%emt 0:00:07]} d5 {[%emt 0:00:06]} 3. Bd3 {[%emt 0:00:06]} dxe4 {[%emt 0:00:06]} 4. Bxe4 {[%emt 0:00:08]} Nf6 {[%emt 0:00:03]} 5. Bf3 {[%emt 0:00:08]} c5 {[%emt 0:00:06]} 6. Ne2 {[%emt 0:00:13]} Be7 {[%emt 0:00:10]} 7. Be3 {[%emt 0:02:30]} cxd4 {[%emt 0:00:35]} 8. Qxd4 {[%emt 0:01:40]} O-O {[%emt 0:01:22]} 9. Nbc3 {[%emt 0:12:11]} Nc6 {[%emt 0:01:21]} 10. Bxc6 {[%emt 0:05:08]} bxc6 {[%emt 0:00:08]} 11. Qxd8 {[%emt 0:02:26]} Rxd8 {[%emt 0:00:21]} 12. O-O {[%emt 0:07:01]} Ba6 {[%emt 0:01:16]} 13. Rfd1 {[%emt 0:02:50]} Nd5 {[%emt 0:00:22]} 14. Bd4 {[%emt 0:04:52]} c5 {[%emt 0:00:56]} 15. Be5 {[%emt 0:01:02]} f6 {[%emt 0:00:13]} 16. Bg3 {[%emt 0:02:41]} Nb4 {[%emt 0:00:33]} 17. Bc7 {[%emt 0:11:04]} Rdc8 {[%emt 0:03:35]} 18. Bd6 {[%emt 0:15:05]} Kf7 {[%emt 0:06:16]} 19. Bxe7 {[%emt 0:03:10]} Kxe7 {[%emt 0:00:09]} 20. Rdc1 {[%emt 0:01:15]} Rd8 {[%emt 0:01:07]} 21. a3 {[%emt 0:01:22]} Nc6 {[%emt 0:00:50]} 22. Ng3 {[%emt 0:02:07]} Rd4 {[%emt 0:02:35]} 23. Nge4 {[%emt 0:02:38]} c4 {[%emt 0:07:01]} 24. Nc5 {[%emt 0:01:55]} Bc8 {[%emt 0:00:38]} 25. Nb5 {[%emt 0:08:27]} Rd5 {[%emt 0:15:45]} 26. b4 {[%emt 0:00:20]} Rb8 {[%emt 0:09:05]} 27. Nc3 {[%emt 0:00:54]} Rd8 {[%emt 0:09:09]} 28. N3e4 {[%emt 0:05:17]} f5 {[%emt 0:02:39]} 29. Ng3 {[%emt 0:00:23]} e5 {[%emt 0:05:51]} 30. Rd1 {[%emt 0:01:21]} Be6 {[%emt 0:06:49]} 31. c3 {[%emt 0:00:50]} g5 {[%emt 0:02:05]} 32. a4 {[%emt 0:01:04]} Kf6 {[%emt 0:02:33]} 33. Nf1 {[%emt 0:01:48]} Bf7 {[%emt 0:01:41]} 34. Nd7+ {[%emt 0:00:16]} Ke7 {[%emt 0:02:05]} 35. Nxb8 {[%emt 0:00:11]} Rxb8 {[%emt 0:00:07]} 36. Ne3 {[%emt 0:01:02]} 1-0

[Event "FIDE WYCC Top Boards Girls 2023"]
[Site "Montesilvano"]
[Date "2023.11.17"]
[Round "5.7"]
[White "Balabayeva, Xeniya"]
[Black "Hrebenshchykova, Yelyzaveta"]
[Result "1/2-1/2"]
[ECO "C55"]
[WhiteElo "2192"]
[BlackElo "2292"]
[Annotator "RC"]
[PlyCount "109"]
[EventDate "2023.11.13"]
[EventType "swiss"]
[EventCountry "ITA"]
[SourceTitle "playchess.com"]
[Source "ChessBase"]
[SourceQuality "1"]
[TimeControl "40/5400+30:1800+30"]

1. e4 {[%emt 0:00:04]} e5 {[%emt 0:00:08]} 2. Nf3 {[%emt 0:00:09]} Nc6 {[%emt 0:00:05]} 3. Bc4 {[%emt 0:00:07]} Nf6 {[%emt 0:00:05]} 4. d3 {[%emt 0:00:07]} Be7 {[%emt 0:00:45]} 5. O-O {[%emt 0:00:38]} O-O {[%emt 0:00:15]} 6. Nc3 {[%emt 0:00:22]} d6 {[%emt 0:01:08]} 7. a4 {[%emt 0:00:14]} Bg4 {[%emt 0:11:35]} 8. h3 {[%emt 0:02:18]} Bxf3 {[%emt 0:04:17]} 9. Qxf3 {[%emt 0:00:10]} Nd4 {[%emt 0:00:02]} 10. Qd1 {[%emt 0:01:14]} c6 {[%emt 0:00:12]} 11. Ba2 {[%emt 0:08:15]} a5 {[%emt 0:10:46]} 12. Be3 {[%emt 0:07:55]} Ne6 {[%emt 0:05:33]} 13. Qf3 {[%emt 0:04:43]} Nd7 {[%emt 0:12:17]} 14. Ne2 {[%emt 0:16:47]} Ndc5 {[%emt 0:11:48]} 15. Bc4 {[%emt 0:03:37]} Bg5 {[%emt 0:01:51]} 16. c3 {[%emt 0:15:26]} Bxe3 {[%emt 0:07:31]} 17. Qxe3 {[%emt 0:03:01]} Qg5 {[%emt 0:08:31]} 18. Qxg5 {[%emt 0:11:04]} Nxg5 {[%emt 0:00:03]} 19. f3 {[%emt 0:00:41]} h5 {[%emt 0:07:11]} 20. h4 {[%emt 0:04:10]} Nh7 {[%emt 0:00:09]} 21. d4 {[%emt 0:02:50]} Nxa4 {[%emt 0:00:47]} 22. Rxa4 {[%emt 0:05:16]} b5 {[%emt 0:00:10]} 23. Bxb5 {[%emt 0:00:04]} cxb5 {[%emt 0:00:03]} 24. Ra3 {[%emt 0:04:27]} Ra6 {[%emt 0:04:07]} 25. Rfa1 {[%emt 0:02:14]} Rfa8 {[%emt 0:00:32]} 26. dxe5 {[%emt 0:02:36]} dxe5 {[%emt 0:00:04]} 27. b4 {[%emt 0:00:07]} a4 {[%emt 0:00:22]} 28. c4 {[%emt 0:00:06]} bxc4 {[%emt 0:01:53]} 29. Nc3 {[%emt 0:00:01]} Nf6 {[%emt 0:00:35]} 30. b5 {[%emt 0:03:24]} Ra5 {[%emt 0:09:48]} 31. Rxa4 {[%emt 0:00:13]} Rxa4 {[%emt 0:00:03]} 32. Rxa4 {[%emt 0:00:06]} Rc8 {[%emt 0:00:25]} 33. Ra7 {[%emt 0:00:46]} Kf8 {[%emt 0:00:28]} 34. b6 {[%emt 0:02:19]} Rb8 {[%emt 0:02:20]} 35. Na4 {[%emt 0:01:15]} Ke8 {[%emt 0:00:16]} 36. b7 {[%emt 0:00:38]} Nd7 {[%emt 0:01:23]} 37. Ra8 {[%emt 0:00:29]} Ke7 {[%emt 0:00:33]} 38. Rxb8 {[%emt 0:01:01]} Nxb8 {[%emt 0:00:14]} 39. Nb6 {[%emt 0:00:10]} c3 {[%emt 0:00:53]} 40. Nd5+ {[%emt 0:00:00]} Kd6 {[%emt 0:00:00]} 41. Nxc3 {[%emt 0:00:16]} Kc6 {[%emt 0:01:40]} 42. g4 {[%emt 0:11:44]} hxg4 {[%emt 0:08:21]} 43. fxg4 {[%emt 0:00:02]} Kxb7 {[%emt 0:00:04]} 44. h5 {[%emt 0:04:43]} Kc8 {[%emt 0:06:43]} 45. Nd5 {[%emt 0:03:34]} Kd8 {[%emt 0:02:22]} 46. g5 {[%emt 0:00:41]} Nd7 {[%emt 0:02:44]} 47. Kg2 {[%emt 0:00:49]} Ke8 {[%emt 0:02:33]} 48. Kf3 {[%emt 0:02:00]} Kf8 {[%emt 0:03:23]} 49. Kg4 {[%emt 0:01:11]} g6 {[%emt 0:00:35]} 50. Nf6 {[%emt 0:06:02]} Nxf6+ {[%emt 0:04:25]} 51. gxf6 {[%emt 0:00:08]} gxh5+ {[%emt 0:00:02]} 52. Kxh5 {[%emt 0:00:07]} Kg8 {[%emt 0:00:03]} 53. Kh6 {[%emt 0:00:24]} Kh8 {[%emt 0:00:03]} 54. Kg5 {[%emt 0:00:06]} Kh7 {[%emt 0:00:11]} 55. Kh5 {[%emt 0:00:05]} 1/2-1/2

[Event "FIDE WYCC Top Boards Girls 2023"]
[Site "Montesilvano"]
[Date "2023.11.17"]
[Round "5.8"]
[White "Allahverdiyeva, Ayan"]
[Black "Wu, Rochelle"]
[Result "1/2-1/2"]
[ECO "C07"]
[WhiteElo "2152"]
[BlackElo "2228"]
[Annotator "ChessBase"]
[PlyCount "75"]
[EventDate "2023.11.13"]
[EventType "swiss"]
[EventCountry "ITA"]
[SourceTitle "playchess.com"]
[Source "ChessBase"]
[SourceQuality "1"]
[TimeControl "40/5400+30:1800+30"]

1. e4 {[%emt 0:00:01]} e6 {[%emt 0:00:08]} 2. d4 {[%emt 0:00:06]} d5 {[%emt 0:00:08]} 3. Nd2 {[%emt 0:00:05]} c5 {[%emt 0:00:07]} 4. exd5 {[%emt 0:00:30]} Qxd5 {[%emt 0:00:09]} 5. Ngf3 {[%emt 0:00:02]} cxd4 {[%emt 0:00:12]} 6. Bc4 {[%emt 0:00:03]} Qd8 {[%emt 0:00:10]} 7. O-O {[%emt 0:01:20]} Nc6 {[%emt 0:00:08]} 8. Nb3 {[%emt 0:00:34]} a6 {[%emt 0:00:23]} 9. a4 {[%emt 0:04:02]} Nf6 {[%emt 0:02:46]} 10. h3 {[%emt 0:06:29]} Bd7 {[%emt 0:04:15]} 11. Nbxd4 {[%emt 0:06:26]} Bc5 {[%emt 0:00:17]} 12. Nb3 {[%emt 0:00:32]} Be7 {[%emt 0:00:16]} 13. a5 {[%emt 0:04:02]} O-O {[%emt 0:03:22]} 14. Be3 {[%emt 0:04:20]} Rc8 {[%emt 0:13:33]} 15. Bb6 {[%emt 0:13:31]} Qe8 {[%emt 0:00:06]} 16. c3 {[%emt 0:09:31]} Nb4 {[%emt 0:06:02]} 17. Nbd2 {[%emt 0:01:23]} Nbd5 {[%emt 0:01:24]} 18. Bd4 {[%emt 0:00:04]} Bc5 {[%emt 0:08:55]} 19. Bxd5 {[%emt 0:09:43]} Nxd5 {[%emt 0:01:49]} 20. Bxc5 {[%emt 0:08:33]} Rxc5 {[%emt 0:00:05]} 21. Ne4 {[%emt 0:00:16]} Rc7 {[%emt 0:00:55]} 22. c4 {[%emt 0:01:16]} Ne7 {[%emt 0:02:31]} 23. Nd6 {[%emt 0:02:10]} Qb8 {[%emt 0:02:44]} 24. Ne5 {[%emt 0:03:46]} f6 {[%emt 0:08:55]} 25. Nxd7 {[%emt 0:02:17]} Rxd7 {[%emt 0:00:11]} 26. c5 {[%emt 0:00:01]} Nc8 {[%emt 0:15:31]} 27. Qb3 {[%emt 0:01:35]} Nxd6 {[%emt 0:04:27]} 28. Qxe6+ {[%emt 0:00:09]} Rdf7 {[%emt 0:06:27]} 29. cxd6 {[%emt 0:00:21]} Re8 {[%emt 0:00:15]} 30. Qd5 {[%emt 0:00:45]} Re5 {[%emt 0:02:19]} 31. Qd4 {[%emt 0:02:03]} Rd7 {[%emt 0:01:01]} 32. Rfd1 {[%emt 0:00:17]} Re6 {[%emt 0:02:43]} 33. Qc4 {[%emt 0:00:31]} Kf7 {[%emt 0:02:15]} 34. Re1 {[%emt 0:04:53]} Rdxd6 {[%emt 0:02:19]} 35. Rxe6 {[%emt 0:00:05]} Rxe6 {[%emt 0:00:05]} 36. Re1 {[%emt 0:00:02]} Qd6 {[%emt 0:01:17]} 37. Qb3 {[%emt 0:00:03]} b5 {[%emt 0:00:24]} 38. axb6 {[%emt 0:05:57]} 1/2-1/2

[Event "FIDE WYCC Top Boards Girls 2023"]
[Site "Montesilvano"]
[Date "2023.11.17"]
[Round "5.9"]
[White "Shvedova, Alexandra"]
[Black "Shohradova, Leyla"]
[Result "*"]
[ECO "A57"]
[WhiteElo "2170"]
[BlackElo "1782"]
[Annotator "ChessBase"]
[PlyCount "81"]
[EventDate "2023.11.13"]
[EventType "swiss"]
[EventCountry "ITA"]
[SourceTitle "playchess.com"]
[Source "ChessBase"]
[SourceQuality "1"]
[TimeControl "40/5400+30:1800+30"]

1. d4 {[%emt 0:00:04]} Nf6 {[%emt 0:00:16]} 2. c4 {[%emt 0:00:07]} c5 {[%emt 0:00:27]} 3. d5 {[%emt 0:00:26]} b5 {[%emt 0:00:13]} 4. cxb5 {[%emt 0:00:17]} a6 {[%emt 0:00:09]} 5. e3 {[%emt 0:00:16]} d6 {[%emt 0:00:26]} 6. Nc3 {[%emt 0:00:48]} g6 {[%emt 0:00:15]} 7. Nf3 {[%emt 0:00:42]} Bg7 {[%emt 0:00:19]} 8. a4 {[%emt 0:00:34]} O-O {[%emt 0:00:24]} 9. e4 {[%emt 0:00:53]} Bd7 {[%emt 0:07:46]} 10. Bd2 {[%emt 0:01:42]} e6 {[%emt 0:10:52]} 11. dxe6 {[%emt 0:04:49]} Bxe6 {[%emt 0:04:16]} 12. Be2 {[%emt 0:08:22]} axb5 {[%emt 0:10:12]} 13. Bxb5 {[%emt 0:04:34]} Na6 {[%emt 0:01:27]} 14. O-O {[%emt 0:06:06]} Nb4 {[%emt 0:07:51]} 15. Ra3 {[%emt 0:27:30]} Qe7 {[%emt 0:08:50]} 16. Re1 {[%emt 0:06:57]} Qb7 {[%emt 0:15:37]} 17. Bf4 {[%emt 0:04:49]} d5 {[%emt 0:02:24]} 18. exd5 {[%emt 0:04:39]} Nfxd5 {[%emt 0:01:46]} 19. Nxd5 {[%emt 0:03:55]} Bxd5 {[%emt 0:02:44]} 20. Be5 {[%emt 0:04:33]} Bh6 {[%emt 0:05:43]} 21. Qe2 {[%emt 0:05:54]} Bc6 {[%emt 0:05:38]} 22. Qc4 {[%emt 0:02:18]} Rfc8 {[%emt 0:03:32]} 23. Qh4 {[%emt 0:05:25]} Bg7 {[%emt 0:04:52]} 24. Ng5 {[%emt 0:02:59]} h5 {[%emt 0:02:14]} 25. Bc4 {[%emt 0:02:11]} Bd5 {[%emt 0:00:39]} 26. Rf3 {[%emt 0:01:50]} Rf8 {[%emt 0:01:39]} 27. Bd6 {[%emt 0:00:27]} Bxf3 {[%emt 0:00:46]} 28. gxf3 {[%emt 0:00:22]} Qd7 {[%emt 0:02:02]} 29. Bxf8 {[%emt 0:00:30]} Rxf8 {[%emt 0:00:04]} 30. Kg2 {[%emt 0:00:39]} Nd5 {[%emt 0:00:48]} 31. Qe4 {[%emt 0:00:24]} Rd8 {[%emt 0:00:40]} 32. a5 {[%emt 0:00:40]} Bf6 {[%emt 0:00:33]} 33. Nxf7 {[%emt 0:00:34]} Qxf7 {[%emt 0:00:32]} 34. Rd1 {[%emt 0:00:06]} Bd4 {[%emt 0:00:14]} 35. a6 {[%emt 0:00:44]} Kg7 {[%emt 0:01:08]} 36. a7 {[%emt 0:00:42]} Nf4+ {[%emt 0:00:09]} 37. Kh1 {[%emt 0:00:24]} Qxc4 {[%emt 0:00:15]} 38. Qe7+ {[%emt 0:00:32]} Kh6 {[%emt 0:00:57]} 39. Qxd8 {[%emt 0:00:09]} Qe2 {[%emt 0:00:48]} 40. Qf8+ {[%emt 0:00:00]} Kh7 {[%emt 0:00:00]} 41. Qf7+ {[%emt 0:17:24]} *

[Event "FIDE WYCC Top Boards Girls 2023"]
[Site "Montesilvano"]
[Date "2023.11.17"]
[Round "5.10"]
[White "Wang, Chuqiao"]
[Black "Kaldarova, Ayaulym"]
[Result "1-0"]
[ECO "A40"]
[WhiteElo "2215"]
[BlackElo "2005"]
[Annotator "ChessBase"]
[PlyCount "77"]
[EventDate "2023.11.13"]
[EventType "swiss"]
[EventCountry "ITA"]
[SourceTitle "playchess.com"]
[Source "ChessBase"]
[SourceQuality "1"]
[TimeControl "40/5400+30:1800+30"]

1. d4 {[%emt 0:00:05]} e6 {[%emt 0:00:48]} 2. c4 {[%emt 0:00:12]} b6 {[%emt 0:00:26]} 3. Nc3 {[%emt 0:00:10]} Bb7 {[%emt 0:00:48]} 4. e4 {[%emt 0:00:05]} Bb4 {[%emt 0:00:40]} 5. Bd3 {[%emt 0:00:15]} f5 {[%emt 0:02:26]} 6. d5 {[%emt 0:05:08]} fxe4 {[%emt 0:08:14]} 7. Bxe4 {[%emt 0:00:20]} Nf6 {[%emt 0:00:54]} 8. Bf3 {[%emt 0:00:53]} exd5 {[%emt 0:11:24]} 9. cxd5 {[%emt 0:00:25]} O-O {[%emt 0:00:18]} 10. Nge2 {[%emt 0:01:44]} c6 {[%emt 0:08:11]} 11. d6 {[%emt 0:08:27]} Bxc3+ {[%emt 0:04:43]} 12. bxc3 {[%emt 0:01:32]} Qc8 {[%emt 0:03:06]} 13. Ng3 {[%emt 0:12:16]} Re8+ {[%emt 0:06:39]} 14. Be3 {[%emt 0:00:40]} c5 {[%emt 0:01:22]} 15. Nf5 {[%emt 0:01:48]} Bxf3 {[%emt 0:00:59]} 16. Qxf3 {[%emt 0:00:50]} Nc6 {[%emt 0:00:21]} 17. Qg3 {[%emt 0:02:23]} g6 {[%emt 0:01:12]} 18. O-O {[%emt 0:01:28]} Nh5 {[%emt 0:05:35]} 19. Qg4 {[%emt 0:01:46]} Ne5 {[%emt 0:01:40]} 20. Qg5 {[%emt 0:00:37]} Qb7 {[%emt 0:03:19]} 21. Ne7+ {[%emt 0:00:47]} Rxe7 {[%emt 0:00:28]} 22. Qxe7 {[%emt 0:03:02]} Nf7 {[%emt 0:00:57]} 23. Rfe1 {[%emt 0:02:59]} Ng7 {[%emt 0:02:24]} 24. Bf4 {[%emt 0:06:01]} Rf8 {[%emt 0:04:17]} 25. Qe4 {[%emt 0:01:21]} Qa6 {[%emt 0:03:08]} 26. Qd5 {[%emt 0:01:04]} Ne6 {[%emt 0:00:21]} 27. Bg3 {[%emt 0:01:06]} Qa3 {[%emt 0:04:16]} 28. Qb3 {[%emt 0:01:36]} Qa6 {[%emt 0:00:21]} 29. a4 {[%emt 0:00:11]} Qb7 {[%emt 0:02:07]} 30. Qb5 {[%emt 0:01:41]} a6 {[%emt 0:03:46]} 31. Qd3 {[%emt 0:01:57]} Qc6 {[%emt 0:02:51]} 32. Qxa6 {[%emt 0:04:32]} Nxd6 {[%emt 0:00:19]} 33. a5 {[%emt 0:01:00]} Nf5 {[%emt 0:10:51]} 34. Qxb6 {[%emt 0:00:51]} Qa8 {[%emt 0:01:28]} 35. a6 {[%emt 0:00:22]} Nxg3 {[%emt 0:00:58]} 36. hxg3 {[%emt 0:00:20]} Qd5 {[%emt 0:00:53]} 37. a7 {[%emt 0:00:26]} Qd2 {[%emt 0:03:47]} 38. a8=Q {[%emt 0:01:35]} Qxf2+ {[%emt 0:00:07]} 39. Kh2 {[%emt 0:00:03]} 1-0